Cogmind - Beta 10.2 @@@ ROGUE MODE // 2022.01.16 @ 15:16:39 Player: Bensnap Result: Destroyed by S-27 Virus with Autogun Performance ------------- Evolutions (3) 1500 Regions Visited (6) 1200 Robots Destroyed (34) 170 Value Destroyed (688) 688 Prototype IDs (1) 20 Alien Tech Used (0) 0 Bonus (-2) -2 TOTAL SCORE: 3576 Bonus ------- Friendly Fire -2 Cogmind --------- Core Integrity 0/700 Matter 194/300 Energy 119/150 System Corruption 6% Temperature Cool (26) Movement Core (250) Ox4 Location -7/Factory Parts ------- > --- POWER (1) -------- Micro Nuclear Core > --- PROPULSION (4) --- (None) > --- UTILITY (6) ------ Enhanced Optical Array Signal Interpreter Improved Terrain Scan Processor > --- WEAPON (2) ------- Plasma Cannon > --- INVENTORY (4) ---- System Shield Peak State ------------ > --- POWER ------------ Light Deuterium Engine > --- PROPULSION ------- Armored Huge Wheel Improved Hover Unit > --- UTILITY ---------- Enhanced Optical Array Signal Interpreter Terrain Scanner Improved Terrain Scan Processor Improved Melee Analysis Suite System Shield > --- WEAPON ----------- Heavy Rocket Launcher Heavy Rocket Launcher > --- INVENTORY -------- Micro Nuclear Core System Shield Improved Datajack Katana [Rating: 38] Favorites ----------- Power Ion Engine Engine Ion Engine Power Core Light Nuclear Core Propulsion Aluminum Leg Leg Aluminum Leg Wheel Compact Wheel Hover Unit Improved Hover Unit Flight Unit Flight Unit Utility Improved Terrain Scan Processor Device Terrain Scanner Storage Large Storage Unit Processor Improved Terrain Scan Processor Hackware System Shield Weapon High-powered Shotgun Energy Cannon Plasma Cannon Ballistic Gun High-powered Shotgun Ballistic Cannon Light Cannon Launcher Grenade Launcher Special Weapon Mining Laser Slashing Weapon Katana Special Melee Weapon Improved Datajack Build | -11 -10 -10 -9 -9 -8 -7 ------- Run | Scr Mat Min Mat Min Mat Fac Slots Evolved 6 | . . . 2 . 2 2 Power . | . . . . . . . Propulsion 2 | . . . 1 . . 1 Utility 4 | . . . 1 . 2 1 Weapon . | . . . . . . . Parts Attached 54 | 7 8 3 5 10 10 11 Power 8 | 1 1 1 1 1 2 1 Engine 6 | 1 1 . 1 1 2 . Core 2 | . . 1 . . . 1 Reactor . | . . . . . . . Propulsion 12 | 2 2 . 2 3 1 2 Treads . | . . . . . . . Leg 4 | . 2 . 2 . . . Wheel 3 | 2 . . . . . 1 Hover 2 | . . . . . 1 1 Flight 3 | . . . . 3 . . Utility 16 | 2 3 . 2 4 4 1 Device 4 | 1 . . . 2 1 . Storage 6 | 1 3 . 1 1 . . Processor 4 | . . . 1 1 1 1 Hackware 2 | . . . . . 2 . Protection . | . . . . . . . Artifact . | . . . . . . . Weapon 18 | 2 2 2 . 2 3 7 Energy Gun . | . . . . . . . Energy Cannon 1 | . . . . . . 1 Ballistic Gun 4 | 2 . 2 . . . . Ballistic Cannon 1 | . 1 . . . . . Launcher 4 | . 1 . . . . 3 Special Weapon 1 | . . . . 1 . . Impact Weapon . | . . . . . . . Slashing Weapon 6 | . . . . 1 3 2 Piercing Weapon . | . . . . . . . Special Melee Weapon 1 | . . . . . . 1 Unidentified Prototypes 1 | . . . . 1 . . Parts Lost 19 | . 2 . 1 1 5 10 Power 3 | . . . 1 . 1 1 Propulsion 7 | . 1 . . 1 3 2 Utility 4 | . 1 . . . . 3 Weapon 5 | . . . . . 1 4 Highest Loss Streak 8 | . 1 . 1 1 3 8 Average Slot Usage (%) 84 | . 94 99 95 95 72 63 Engine 8 | . 14 6 4 10 8 6 Core 2 | . . 7 3 . . . Leg 11 | . 2 28 32 2 . . Wheel 5 | . 22 . . . . 5 Flight 4 | . . . . 27 12 . Device 2 | . 1 . . 3 7 3 Storage 15 | . 25 28 22 13 4 . Processor 13 | . . . 10 14 22 27 Hackware 2 | . . . . . 5 6 Ballistic Gun 6 | . 16 1 22 4 . . Ballistic Cannon 3 | . 4 12 . . . . Launcher 5 | . 6 12 . . . 8 Special Weapon 1 | . . . . 8 3 . Slashing Weapon 1 | . . . . 8 5 . Naked Turns . | . . . . . . . Heaviest Build 59 | 11 59 59 59 35 11 20 Greatest Support 32 | 32 32 20 30 30 12 28 Greatest Overweight (x) 19 | . 19 2 2 11 2 . Average Overweight (x) . | . . 2 . . . . Largest Inventory Capacity 22 | 6 18 18 22 14 6 4 Average Capacity 10 | 5 13 18 14 7 4 4 Most Carried 18 | 4 18 18 18 14 6 4 Average Carried 9 | 2 11 17 14 7 4 3 Final Capacity 18 | 6 18 18 14 6 4 4 Final Carried 18 | 4 17 18 14 6 4 1 Class Distribution -------------------- 72% | Mutant 10% | Scavenger-Mutant 10% | Scout 6% | Skirmisher Dominant Class ---------------- Mutant | -10/Materials Mutant | -10/Mines Mutant | -9/Materials Scavenger-Mutant | -9/Mines Scout | -8/Materials Mutant | -7/Factory Resources | -11 -10 -10 -9 -9 -8 -7 ----------- Run | Scr Mat Min Mat Min Mat Fac Matter Collected 1005 | 263 128 104 172 155 150 33 Remotely . | . . . . . . . Salvage Created 705 | 48 192 144 105 52 86 78 Parts 65 | 5 17 8 7 8 7 13 Haulers Intercepted . | . . . . . . . Recyclers Shooed 2 | . . . . . . 2 Parts Field Recycled . | . . . . . . . Retrieved Matter . | . . . . . . . Parts Self-Destructed . | . . . . . . . Prevented . | . . . . . . . Kills | -11 -10 -10 -9 -9 -8 -7 ------- Run | Scr Mat Min Mat Min Mat Fac Combat Hostiles Destroyed 19 | . 6 5 2 4 1 1 Melee 2 | . . . . . 1 1 Guns 8 | . 3 . 2 3 . . Cannons 2 | . . 1 . 1 . . AOE 7 | . 3 4 . . . . Classes Destroyed 9 | 1 6 . 1 . 1 . Worker 1 | . 1 . . . . . Builder 5 | . 2 . . . . 3 Tunneler 3 | 2 . . . . . 1 Recycler 2 | . 1 1 . . . . Operator 1 | . 1 . . . . . Watcher 3 | . . . 1 . 1 1 Swarmer 10 | . 3 3 . 3 . 1 Grunt 8 | . 3 2 2 1 . . Hunter 1 | . . . . . 1 . Best Kill Streak 8 | 1 8 4 1 3 1 3 Combat Bots Only 4 | . 4 3 1 3 1 1 Max Kills in Single Turn 2 | 1 2 2 1 1 1 2 Gunslinging 1 | . 1 . . . . . Exploded 2 | . 2 2 . . . . Melee 1 | . . . . . 1 1 Uniques/NPCs Destroyed . | . . . . . . . Combat | -11 -10 -10 -9 -9 -8 -7 -------- Run | Scr Mat Min Mat Min Mat Fac Damage Taken 2727 | . 287 252 317 98 323 1450 Core 951 | . 87 22 29 15 97 701 Absorbed by Shields . | . . . . . . . Core Remaining (%) 81 | 100 . 56 . 89 82 . Volleys Fired 61 | 10 20 10 6 6 1 8 Largest 2 | 2 2 2 2 2 1 2 Hottest 100 | 40 65 65 50 100 100 80 Shots Fired 114 | 20 40 18 12 9 1 14 Gun 69 | 20 31 . 12 6 . . Cannon 14 | . 2 10 . . . 2 Launcher 27 | . 7 8 . . . 12 Special 4 | . . . . 3 1 . Kinetic 81 | 20 33 10 12 6 . . Thermal 6 | . . . . 3 1 2 Explosive 21 | . 7 8 . . . 6 Electromagnetic 6 | . . . . . . 6 Robot Hit Streak 6 | 4 6 3 4 3 . 6 Robot Miss Streak 4 | 2 3 2 4 4 1 2 Penetration Max . | . . . . . . . Secondary Targets 1 | . 1 . . . . . Max Gunslinging Chain 1 | . 1 . . . . . Shots Hit Robots 74 | 13 21 8 8 5 5 14 Core Hits 58 | 3 16 11 5 4 2 17 Critical Hits 2 | . 2 . . . . . Critical Kills 1 | . 1 . . . . . Critical Parts Destroyed 1 | . 1 . . . . . Melee Attacks 25 | . . . . 2 12 11 Impact . | . . . . . . . Slashing 22 | . . . . 2 12 8 Piercing . | . . . . . . . Sneak Attacks 3 | . . . . . 1 2 Combat Hostiles . | . . . . . . . Follow-up Attacks . | . . . . . . . Damage Inflicted 2695 | 163 606 407 72 143 240 1064 Guns 501 | 163 184 . 72 82 . . Cannons 170 | . 36 109 . . . 25 Explosions 1441 | . 386 298 . . . 757 Melee 510 | . . . . 37 240 233 Ramming 49 | . . . . . . 49 Kinetic 646 | 163 220 109 72 82 . . Thermal 408 | . . . . 24 . 384 Explosive 1023 | . 386 298 . . . 339 Electromagnetic 59 | . . . . . . 59 Impact . | . . . . . . . Slashing 510 | . . . . 37 240 233 Piercing . | . . . . . . . Highest Corruption 6 | . . . . . . 6 Average Corruption 1 | . . . . . . 1 Corruption Purged . | . . . . . . . Effects 5 | . . . . . . 5 Message Errors 3 | . . . . . . 3 Data Loss (minor) 1 | . . . . . . 1 Targeting Errors 1 | . . . . . . 1 Overload Shots . | . . . . . . . Overflow Damage 265 | . . 17 . . 71 177 Projectiles . | . . . . . . . Explosions 131 | . . 17 . . . 114 Melee 134 | . . . . . 71 63 Knockbacks 3 | . 2 . . . . 1 Impact 1 | . . . . . . 1 Kinetic 1 | . 1 . . . . . Secondary 1 | . 1 . . . . . Self-Inflicted Damage 200 | . 29 44 . . . 127 Shots 9 | . 2 3 . . . 4 Rammed 11 | . . . . . . 11 Targets Rammed 11 | . . . . . . 11 Kicked . | . . . . . . . Crushed . | . . . . . . . Highest Temperature 29 | . 18 21 2 29 11 26 Average Temperature 10 | . 8 8 2 17 8 9 Received Heat Transfer 384 | . 96 96 81 12 45 54 Siege Activations . | . . . . . . . Robots Corrupted . | . . . . . . . Combat Hostiles . | . . . . . . . Parts Fried . | . . . . . . . Impact Corruptions . | . . . . . . . Robots Melted . | . . . . . . . Combat Hostiles . | . . . . . . . Parts Melted . | . . . . . . . Heat Transferred 300 | . . . . 50 . 250 Parts Sabotaged . | . . . . . . . Parts Stolen . | . . . . . . . Parts Stripped . | . . . . . . . Power Chain Reactions . | . . . . . . . Missiles Intercepted . | . . . . . . . Alert | -11 -10 -10 -9 -9 -8 -7 ------- Run | Scr Mat Min Mat Min Mat Fac Peak Influence 285 | 10 285 158 159 60 106 282 Initial 43 | . 6 33 . . 23 43 Average 83 | 2 160 81 43 48 73 94 Maximum Alert Level 1 | . 1 . . . . 1 Low Security (%) 93 | 100 69 100 100 100 100 94 Level 1 6 | . 30 . . . . 5 Level 2 . | . . . . . . . Level 3 . | . . . . . . . Level 4 . | . . . . . . . Level 5 . | . . . . . . . High Security . | . . . . . . . Max Security . | . . . . . . . Squads Dispatched 8 | . 3 1 1 . . 3 Investigation 2 | . 1 1 . . . . Extermination 2 | . . . . . . 2 Reinforcement 4 | . 2 . 1 . . 1 Assault . | . . . . . . . Garrison . | . . . . . . . Intercept . | . . . . . . . Construction Impeded 1 | . . . . . . 1 Haulers Reinforced . | . . . . . . . Stealth | -11 -10 -10 -9 -9 -8 -7 --------- Run | Scr Mat Min Mat Min Mat Fac Distress Signals 4 | . 1 . 2 . . 1 Communications Jammed . | . . . . . . . Distress Signals . | . . . . . . . Times Spotted 67 | . 12 7 18 7 8 15 Peak Tracking Total 10 | . 4 3 10 4 3 10 Tactical Retreats 9 | . 3 . 2 2 . 2 Traps | -11 -10 -10 -9 -9 -8 -7 ------- Run | Scr Mat Min Mat Min Mat Fac Traps Triggered 2 | . . . . . . 2 Indirectly . | . . . . . . . Trap Hack Attempts . | . . . . . . . Triggered . | . . . . . . . Disarmed . | . . . . . . . Reprogrammed . | . . . . . . . Reused . | . . . . . . . Traps Extracted . | . . . . . . . Installed . | . . . . . . . Triggered . | . . . . . . . Machines | -11 -10 -10 -9 -9 -8 -7 ---------- Run | Scr Mat Min Mat Min Mat Fac Machines Disabled 9 | . 1 . . . . 8 Max in Single Turn 6 | . 1 . . . . 6 Machines Sabotaged . | . . . . . . . Garrisons Compromised . | . . . . . . . Overloaded Fab Kills . | . . . . . . . Fab Network Shutdowns . | . . . . . . . Hacking | -11 -10 -10 -9 -9 -8 -7 --------- Run | Scr Mat Min Mat Min Mat Fac Machines Accessed 18 | . 3 3 3 . 4 5 Terminals 11 | . 2 1 3 . 2 3 Fabricators . | . . . . . . . Repair Stations 1 | . . . . . . 1 Recycling Units 2 | . 1 . . . 1 . Scanalyzers 2 | . . . . . 1 1 Garrison Access . | . . . . . . . Total Hacks 52 | . 7 4 10 . 18 13 Successful 33 | . 4 4 7 . 12 6 Failed 19 | . 3 . 3 . 6 7 Catastrophic 2 | . 1 . . . 1 . Database Lockouts . | . . . . . . . Manual 17 | . 3 . 6 . 4 4 Terminals 30 | . 6 2 10 . 5 7 Fabricators . | . . . . . . . Repair Stations 2 | . . . . . . 2 Recycling Units 5 | . 1 . . . 4 . Scanalyzers 13 | . . . . . 9 4 Garrison Access . | . . . . . . . Terminal Hacks 15 | . 3 4 5 . 1 2 Record 1 | . . . . . . 1 Open Door 2 | . . 2 . . . . Branch Access Points 1 | . . . 1 . . . Emergency Access Points 2 | . . . 1 . . 1 Alert Level 1 | . 1 . . . . . Locate Traps 1 | . 1 . . . . . Dispatch Records 1 | . . 1 . . . . Zone Layout 6 | . 1 1 3 . 1 . Fabricator Hacks . | . . . . . . . Repair Station Hacks . | . . . . . . . Recycling Unit Hacks 1 | . . . . . 1 . Report Inventory 1 | . . . . . 1 . Scanalyzer 12 | . . . . . 8 4 Insert Component 6 | . . . . . 4 2 Analyze 6 | . . . . . 4 2 Garrison Access Hacks . | . . . . . . . Unauthorized Hacks 5 | . 1 . 2 . 2 . Terminals 4 | . . . 2 . 2 . Track 2 | . . . 1 . 1 . Assimilate 2 | . . . 1 . 1 . Fabricators . | . . . . . . . Repair Stations . | . . . . . . . Recycling Units 1 | . 1 . . . . . Tunnel 1 | . 1 . . . . . Scanalyzers . | . . . . . . . Garrison Access . | . . . . . . . Data Cores Recovered . | . . . . . . . Used . | . . . . . . . Hacking Detections 13 | . 2 1 3 . 3 4 Full Trace Events . | . . . . . . . Feedback Events . | . . . . . . . Feedback Blocked . | . . . . . . . Robot Schematics Acquired . | . . . . . . . Robots Built . | . . . . . . . Matter . | . . . . . . . Time . | . . . . . . . Total Robot Build Rating . | . . . . . . . Part Schematics Acquired 6 | . . . . . 4 2 Parts Built . | . . . . . . . Matter . | . . . . . . . Time . | . . . . . . . Total Part Build Rating . | . . . . . . . Parts Repaired . | . . . . . . . Time . | . . . . . . . Parts Recycled . | . . . . . . . Recycled Matter . | . . . . . . . Retrieved Matter . | . . . . . . . Retrieved Components . | . . . . . . . Parts Scanalyzed 6 | . . . . . 4 2 Part Schematics Acquired 6 | . . . . . 4 2 Parts Damaged . | . . . . . . . Bothacking | -11 -10 -10 -9 -9 -8 -7 ------------ Run | Scr Mat Min Mat Min Mat Fac Used RIF Installer . | . . . . . . . Robots Hacked 3 | . . . . . . 3 Non-combat 1 | . . . . . . 1 Combat 2 | . . . . . . 2 Robot Hacks Applied 3 | . . . . . . 3 parse_system 2 | . . . . . . 2 find_chute 1 | . . . . . . 1 Relay Couplers Released . | . . . . . . . Robots Rewired . | . . . . . . . Allies Hacked . | . . . . . . . Hacks Repelled . | . . . . . . . Allies | -11 -10 -10 -9 -9 -8 -7 -------- Run | Scr Mat Min Mat Min Mat Fac Total Allies 1 | . . . . . 1 . Largest Group . | . . . . . . . Highest-Rated Group . | . . . . . . . Highest-Rated Ally . | . . . . . . . Total Orders 6 | . . . . 6 . . EXPLORE 6 | . . . . 6 . . Ally Attacks 23 | . . . . 23 . . Total Damage 61 | . . . . 61 . . Kills . | . . . . . . . Allies Corrupted 3 | . . . . 3 . . Allies Melted . | . . . . . . . Intel | -11 -10 -10 -9 -9 -8 -7 ------- Run | Scr Mat Min Mat Min Mat Fac Robot Analysis Total . | . . . . . . . Derelict Logs Recovered 2 | . . 1 . 1 . . Drone Launches 6 | . . . . 6 . . Drone Recoveries 3 | . . . . 3 . . Exploration | -11 -10 -10 -9 -9 -8 -7 ------------- Run | Scr Mat Min Mat Min Mat Fac Turns Passed 2679 | 129 425 509 403 224 356 633 Spaces Moved 2194 | 87 288 258 258 162 519 622 Core 36 | 4 2 . . 2 . 28 Treads . | . . . . . . . Legs 537 | . 18 258 258 3 . . Wheels 821 | 83 268 . . . . 470 Hover 247 | . . . . . 123 124 Flight 553 | . . . . 157 396 . Fastest Speed 34 | 50 100 180 120 34 34 50 Average Speed 98 | 97 118 180 140 53 51 89 Slowest Speed 1000 | 100 1000 180 180 680 200 100 Overloaded Moves . | . . . . . . . Propulsion Burnouts . | . . . . . . . Robots Hopped 7 | . . . . 6 1 . Cave-ins Triggered . | . . . . . . . Exploration Rate (%) 36 | 6 46 55 25 56 45 22 Regions Visited 6 Branch Regions 2 Pre-discovered Areas 2 | . 1 . . 1 . . Known Exits Taken 4 | . . 1 1 1 1 . Unknown Exits Taken 2 | 1 1 . . . . . Scrap Searched 1 | . . . . 1 . . Spaces Dug 2 | . . . . 2 . . Terrain Destroyed 183 | . 38 30 . 2 . 113 Melee . | . . . . . . . Projectile 2 | . . . . 2 . . AOE 181 | . 38 30 . . . 113 Terrain Rammed . | . . . . . . . Walls Destroyed . | . . . . . . . Machines Disabled . | . . . . . . . Actions | -11 -10 -10 -9 -9 -8 -7 --------- Run | Scr Mat Min Mat Min Mat Fac Total 2554 | 109 333 288 289 278 590 667 Wait 148 | 2 7 3 8 88 39 1 Move 2174 | 86 287 257 257 149 516 622 Hop 7 | . . . . 6 1 . Pick Up 29 | 4 8 6 5 4 2 . Fast Attach 32 | 7 4 3 1 7 3 7 Attach 17 | . 1 . 3 3 6 4 Detach 13 | . 3 1 . 3 5 1 Swap 5 | . 3 . 1 . 1 . Drop 32 | . . 8 8 10 4 2 Fire 61 | 10 20 10 6 6 1 8 Melee 25 | . . . . 2 12 11 Ram 11 | . . . . . . 11 Kick . | . . . . . . . Crush . | . . . . . . . Escape Stasis . | . . . . . . . Rewire . | . . . . . . . Trap . | . . . . . . . Miscellaneous . | . . . . . . . Route ------- -11/Scrapyard -10/Materials (discovered 2 exits: *Mat / *Min) -10/Mines (discovered 2 exits: *Mat x2) -9/Materials (discovered 2 exits: *Min / Sto) -9/Mines -8/Materials -7/Factory History --------- Turn | Location | Event 30 | -11/Scrapyard | Discovered new exit (range 16) 130 | -11/Scrapyard | Entered Materials 299 | -10/Materials | Discovered new exit (range 4) 308 | -10/Materials | Build established: Mutant 450 | -10/Materials | Discovered new exit (range 13) 555 | -10/Materials | Entered Mines 564 | -10/Mines | Discovered new exit (range 4) 906 | -10/Mines | Found the Drone Emporium 916 | -10/Mines | Identified exit to Materials 921 | -10/Mines | Found Prototype Device 1009 | -10/Mines | Met a Derelict shopkeep closing up shop 1064 | -10/Mines | Entered Materials 1064 | -9/Materials | Evolved 2 slots: Propulsion x1, Utility x1 1131 | -9/Materials | Identified exit to Mines 1131 | -9/Materials | Identified exit to Storage 1467 | -9/Materials | Entered Mines 1525 | -9/Mines | Identified Thief Drone Bay 1684 | -9/Mines | Discovered new exit (range 15) 1688 | -9/Mines | Identified exit to Materials 1691 | -9/Mines | Entered Materials 1691 | -8/Materials | Evolved 2 slots: Utility x2 1861 | -8/Materials | Lost 3 parts (1p1n1w) 2034 | -8/Materials | Discovered new exit (range 19) 2047 | -8/Materials | Identified exit to Factory 2047 | -8/Materials | Entered Factory 2047 | -7/Factory | Evolved 2 slots: Propulsion x1, Utility x1 2645 | -7/Factory | Core integrity fell below 50% 2658 | -7/Factory | Core integrity fell below 20% 2680 | -7/Factory | Destroyed by S-27 Virus with Autogun Last Messages --------------- 02656_ Destabilizing: Short circuit. 02656_ System Shield destroyed. 02657_ Slammed into P-60 Hacker. 02657_ K-01 Serf collects debris. 02665_ Acquired Gravmag System. 02669_ Jacked S-27 Virus... >>parse_system Reading system data... 02670_ Jacked P-60 Hacker... >>parse_system Reading system data... 02671_ System corrupted: Component data lost. 02672_ Sneak attack on K-01 Serf. 02672_ Jacked K-01 Serf... >>find_chute Pinpointed chute assignment: (68,158). 02674_ Imp. Datajack destroyed. 02676_ Acquired Plasma Cannon. 02678_ Gravmag System destroyed. 02680_ System corrupted: Plasma Cannon targeting data glitched. Map ----- +----------------------------------------------------+ | ????????????????????# ""S"" #*# #???? | | ????????????????????# "" "" / + #???? | | ????????????????????# # ###########??????? | | ????????????????????# # #????????????????? | | ????????????????????# ?# #????????????????? | | ????????????????????# ! ??# #????????????????? | | ????????????????????########+## ########?????????? | | ???????????????? #????? | | ???????????????????????########+##### ##?????????? | | ????????????????????????????# #?????????????? | | ????????????????????????????# #?????????????? | | ????????????????????????????# #?????????????? | | ????????????????????????????# ] #?????????????? | | ????????????????????????????# !!#?????????????? | | ????????????????????????????# ! #?????????????? | | ????????????????????????????###/####?????????????? | | ??????????????????????????????# #????????????????? | | ??????????????????????????????# #????????????????? | | ???????????????????????######## ##### ##?????????? | | ????????????????# ??? | | ??????????????????????#########h########?????????? | | ??????????????????????# s #?????????????? | | ??????????????????????# s #?????????????? | | ??????????????????????# s p #?????????????? | | ??????????????????????# """ """ #?????????????? | | ??????????????????????# @ """ """ #?????????????? | | ??????????????????????# """ """ #?????????????? | | ??????????????????????# #?????????????? | | ??????????????????????# #?????????????? | | ??????????????????????+ !! #?????????????? | | ??????????????????????# ! #?????????????? | | ??????????????????????# +?????????????? | | ??????????????????????# Y #?????????????? | | ??????????????????????######## #####?????????????? | | ??????????????????????????????##?????????????????? | | ?????????????????????????????????????????????????? | | ?????????????????????????????????????????????????? | | ?????????????????????????????????????????????????? | | ?????????????????????????????????????????????????? | | ?????????????????????????????????????????????????? | | ?????????????????????????????????????????????????? | | ?????????????????????????????????????????????????? | | ?????????????????????????????????????????????????? | | ?????????????????????????????????????????????????? | | ?????????????????????????????????????????????????? | | ?????????????????????????????????????????????????? | | ?????????????????????????????????????????????????? | | | | | | | +----------------------------------------------------+ Best States ------------- Heat Dissipation 34 Energy Generation 15 Energy Capacity 250 Matter Stores 300 Matter Capacity 300 Sight Range 22 Terrain Scan Range 16 Terrain Scan Density 110 Evasion (%) 63 Melee Accuracy 6 Defensive Hacking 20 Item Schematics ----------------- System Shield | -8/Materials | Scanalyzed Datajack | -8/Materials | Scanalyzed Mic. Nuclear Core | -8/Materials | Scanalyzed Lgt. Ion Engine | -8/Materials | Scanalyzed Katana | -7/Factory | Scanalyzed Imp. Datajack | -7/Factory | Scanalyzed Robot Schematics ------------------ None Fabricated ------------ Nothing Alien Tech Used ----------------- None Achievements -------------- Brute Force Challenges ------------ None Game ------ Seed WarpLatentMeganuke Manual? 0 Play Time 00:48:49 Cumulative 27.5 hours Start 2022.01.16 @ 14:12:10 End 2022.01.16 @ 15:16:39 Sessions 1 Manual Loads 0 Difficulty Rogue Special Mode None Game No. 45 Rogue 45 Adventurer 0 Explorer 0 Win Type - Total 0 Types 0/0/0/0/0/0/0/0/0 Lore% 28 Gallery% 31 Achievement% 30 Wizard Run 0 Options --------- ASCII 0 Keyboard 1 Movement Numpad Keybinds 0 Fullscreen 1 Font 18/SmallcapsGlow Map View 76x50 Tactical HUD 1 Map Filters NONE Filters NONE Steam 1 RUN: cea233dc-c1f9-41e0-a7df-f1e67bb603b9